bitfinex/quotes_BTCUSD_20250410
["timestamp","ask_amount","ask_price","bid_price","bid_amount"]
[1744306959685,0.99198277,79147.0,79146.0,0.54066383]
[1744306959969,0.98061178,79147.0,79146.0,0.54066383]
[1744306960172,0.63498453,79147.0,79146.0,0.74791716]
[1744306960375,0.49740864,79147.0,79146.0,0.85051716]
[1744306960782,0.01723864,79147.0,79146.0,0.53671716]
[1744306961627,0.0001682,79160.0,79146.0,0.53671716]
[1744306961832,0.0001682,79160.0,79148.0,0.35454085]
[1744306962058,0.0001682,79160.0,79150.0,0.35454085]
[1744306962262,0.0001682,79160.0,79152.0,0.35454085]
[1744306962393,0.0001682,79160.0,79154.0,0.34]
[1744306962592,0.0001682,79160.0,79156.0,0.34]
[1744306962798,0.0001682,79160.0,79156.0,0.46690758]
[1744306963377,0.0001682,79160.0,79157.0,0.01176451]
[1744306963490,0.0001682,79160.0,79157.0,0.01441635]
[1744306963996,0.0001682,79160.0,79158.0,0.48144843]
[1744306964297,0.0001682,79160.0,79158.0,0.50497486]
[1744306964501,0.0001682,79160.0,79158.0,0.51673937]
[1744306964895,8e-05,79179.0,79158.0,0.51673937]
[1744306964896,8e-05,79179.0,79158.0,0.52620486]
[1744306965126,0.0003362,79217.0,79175.0,0.34]
[1744306965127,0.0467,79200.0,79175.0,0.34]
[1744306965380,0.0467,79200.0,79178.0,0.01454085]
[1744306965597,0.0467,79200.0,79180.0,0.34]
[1744306965767,0.0467,79200.0,79180.0,0.46690758]
[1744306965964,0.12690758,79197.0,79181.0,0.02352643]
[1744306966348,0.13190678,79197.0,79180.0,0.34]
[1744306966551,0.0467,79196.0,79162.0,0.01454085]
[1744306966828,0.12690758,79195.0,79164.0,0.34]
[1744306966963,0.0001678,79170.0,79166.0,0.34]
[1744306967176,0.0001678,79170.0,79169.0,0.01454085]
[1744306967375,0.0001678,79170.0,79169.0,0.52063528]
[1744306967575,0.0001678,79170.0,79169.0,0.54416171]
[1744306967799,0.0001678,79170.0,79169.0,0.55297071]
[1744306967975,0.0467,79196.0,79171.0,0.01454085]
[1744306968203,0.0467,79196.0,79173.0,0.35454085]
[1744306968405,0.0467,79196.0,79177.0,0.34]
[1744306968578,0.0467,79205.0,79182.0,0.01454085]
[1744306968778,0.0467,79205.0,79184.0,0.35454085]
[1744306968980,0.0467,79205.0,79186.0,0.35454085]
[1744306969196,0.0467,79205.0,79188.0,0.35454085]
[1744306969405,0.0467,79205.0,79190.0,0.35454085]
[1744306969595,0.0001681,79208.0,79192.0,0.35454085]
[1744306969804,0.0001681,79208.0,79194.0,0.35454085]
[1744306970024,0.0001681,79208.0,79196.0,0.35454085]
[1744306970198,0.0001681,79208.0,79197.0,0.50497486]
[1744306970562,0.0001681,79208.0,79197.0,0.37233543]
[1744306970844,0.01273331,79198.0,79197.0,0.37233543]
[1744306971249,0.01273331,79198.0,79197.0,0.34]
[1744306971660,0.01273331,79198.0,79197.0,0.36352643]
[1744306971874,0.01273331,79198.0,79197.0,0.54122461]
[1744306972054,0.01273331,79198.0,79197.0,0.55576546]
[1744306972256,0.01273331,79198.0,79197.0,0.51673937]
[1744306972408,0.01273331,79198.0,79197.0,0.52554837]
[1744306973661,0.01273331,79198.0,79197.0,0.38409994]
[1744306974434,0.01273331,79198.0,79197.0,0.37529094]
[1744306974904,0.01273331,79198.0,79197.0,0.35176451]
[1744306975056,0.01273331,79198.0,79197.0,0.34]
[1744306975456,0.01273331,79198.0,79197.0,0.36352643]
[1744306976278,0.01273331,79198.0,79197.0,0.37529094]
[1744306976730,0.06073331,79198.0,79197.0,0.37529094]
[1744306976937,0.06073331,79198.0,79197.0,0.35176451]
[1744306977446,0.10803331,79198.0,79189.0,0.02352643]
[1744306977655,0.10803331,79198.0,79190.0,0.00252484]
[1744306977869,0.10803331,79198.0,79191.0,0.02352643]
[1744306978663,0.10803331,79198.0,79192.0,0.00252504]
[1744306978871,0.10803331,79198.0,79179.0,0.04770077]
[1744306979105,0.10803331,79198.0,79180.0,0.37890325]
[1744306979250,0.10803331,79198.0,79181.0,0.00252499]
[1744306979610,0.10803331,79198.0,79181.0,0.02605142]
[1744306979789,0.10803331,79198.0,79183.0,0.34]
[1744306980214,0.10803331,79198.0,79183.0,0.348809]
[1744306980775,0.10803331,79198.0,79184.0,0.02352643]
[1744306981024,0.12690758,79197.0,79185.0,0.02352643]
[1744306981231,0.10803331,79198.0,79185.0,0.02352643]
[1744306981435,0.10803331,79198.0,79186.0,0.01169028]
[1744306981635,0.10803331,79198.0,79186.0,0.03521671]
[1744306981963,0.10803331,79198.0,79187.0,0.02352643]
[1744306982393,0.10803331,79198.0,79188.0,0.02352643]
[1744306982902,0.0049992,79194.0,79188.0,0.02352643]
[1744306983125,0.10803331,79198.0,79189.0,0.03775438]
[1744306983356,0.06073331,79198.0,79189.0,0.03775438]
[1744306983603,0.06073331,79198.0,79190.0,0.15043401]
[1744306983832,0.01273331,79198.0,79191.0,0.01170292]
[1744306984064,0.01273331,79198.0,79191.0,0.03522935]
[1744306984280,0.0001681,79199.0,79192.0,0.03486019]
[1744306984530,0.0001681,79199.0,79192.0,0.03233543]
[1744306984704,0.0469,79198.0,79192.0,0.03233543]
[1744306984857,0.0049992,79196.0,79193.0,0.02352643]
[1744306985061,0.0049992,79194.0,79193.0,0.02352643]
[1744306985272,0.0049992,79192.0,79191.0,0.00012635]
[1744306985476,0.0049992,79192.0,79185.0,0.0001]
[1744306985477,0.0049992,79186.0,79185.0,0.0001]
[1744306985687,0.32770678,79186.0,79179.0,0.04770077]
[1744306985880,0.0464,79182.0,79179.0,0.04782718]
[1744306986208,0.0049992,79180.0,79179.0,0.04782718]
[1744306986371,0.13190678,79180.0,79179.0,0.04782718]
[1744306987148,0.32990678,79180.0,79179.0,0.00102718]
[1744306987593,0.048,79180.0,79179.0,0.00102718]
[1744306988957,0.17490758,79180.0,79179.0,0.00102718]
[1744306989248,0.17990678,79180.0,79179.0,0.00102718]
[1744306989450,0.048,79180.0,79179.0,0.00102718]
[1744306991162,0.048,79180.0,79179.0,0.04014025]
[1744306991632,0.0458,79186.0,79179.0,0.04014025]
[1744306991910,0.0458,79186.0,79180.0,0.03911307]
[1744306992357,0.0001681,79199.0,79181.0,0.34252519]
[1744306992358,0.0464681,79199.0,79181.0,0.34252519]
[1744306992578,0.0464681,79199.0,79182.0,0.03911307]
[1744306992924,0.0464681,79199.0,79183.0,0.00252494]
[1744306993157,0.0001681,79199.0,79185.0,0.01454085]
[1744306993541,0.0001681,79199.0,79187.0,0.34]
[1744306993751,0.0001681,79199.0,79189.0,0.34]
[1744306993927,0.0001681,79199.0,79190.0,0.04163772]
[1744306994128,0.0001681,79199.0,79191.0,0.03911307]
[1744306994330,0.0001681,79199.0,79192.0,0.00252466]
[1744306994483,0.0001681,79199.0,79193.0,0.03911307]
[1744306994686,0.0001681,79199.0,79190.0,0.03911307]
[1744306994912,0.0001681,79199.0,79192.0,0.34]
[1744306995107,0.0001681,79199.0,79193.0,0.03911307]
[1744306995515,0.0001681,79199.0,79192.0,0.37911307]
[1744306995722,0.0001681,79199.0,79193.0,0.03911307]
[1744306996810,0.0001681,79199.0,79180.0,0.03911307]
[1744306997058,0.0001681,79199.0,79181.0,0.03911307]
[1744306997255,0.0041673,79200.0,79181.0,0.03911307]
[1744306997486,0.0041673,79200.0,79182.0,0.03911307]
[1744306997668,0.0041673,79200.0,79180.0,0.03911307]
[1744306997921,0.0041673,79200.0,79181.0,0.03911307]
[1744306998086,0.0041673,79200.0,79193.0,0.0001]
[1744306998996,0.0041673,79203.0,79193.0,0.0001]
[1744306999176,0.0041673,79200.0,79193.0,0.0001]
[1744306999413,0.0041673,79203.0,79193.0,0.0001]
[1744306999615,0.25,79227.0,79193.0,0.0001]
[1744306999616,0.0041673,79209.0,79193.0,0.0001]
[1744306999831,0.0041673,79201.0,79193.0,0.0001]
[1744307000044,0.0041673,79194.0,79193.0,0.0001]
[1744307000192,0.23047488,79194.0,79193.0,0.0001]
[1744307000399,0.38047488,79194.0,79193.0,0.0001]
[1744307001247,0.0994,79194.0,79193.0,0.0001]
[1744307001481,0.0461,79207.0,79194.0,0.34]
[1744307001687,0.0461,79207.0,79195.0,0.04163771]
[1744307001936,0.0453,79211.0,79196.0,0.03911307]
[1744307002107,0.0453,79211.0,79197.0,0.03911307]
[1744307002336,0.0453,79211.0,79198.0,0.04163765]
[1744307002575,0.0453,79211.0,79199.0,0.03911307]
[1744307002737,0.0453,79211.0,79200.0,0.04163765]
[1744307003081,0.0003362,79212.0,79201.0,0.03911307]
[1744307003209,0.0003362,79212.0,79202.0,0.03911307]
[1744307003420,0.0003362,79212.0,79203.0,0.03911307]
[1744307003631,0.0003362,79212.0,79194.0,0.34967626]
[1744307003632,0.0003362,79212.0,79204.0,0.03911307]
[1744307003819,0.0003362,79212.0,79205.0,0.03911307]
[1744307004017,0.0003362,79212.0,79206.0,0.03911307]
[1744307004220,0.0003362,79212.0,79194.0,0.34967626]
[1744307004221,0.0041673,79211.0,79207.0,0.03911307]
[1744307004421,0.0003362,79212.0,79207.0,0.03911307]
[1744307004626,0.00059105,79208.0,79207.0,0.06377591]
[1744307007618,0.68260001,79208.0,79207.0,0.12690758]
[1744307007836,0.68260001,79208.0,79207.0,0.15115389]
[1744307008021,0.67158334,79208.0,79207.0,0.15115389]
[1744307008710,0.67158334,79208.0,79207.0,0.02424631]
[1744307008892,0.67158334,79208.0,79180.0,0.47787864]
[1744307009022,0.67158334,79208.0,79188.0,0.16612361]
[1744307009224,0.67158334,79208.0,79189.0,0.03921603]
[1744307009428,0.67158334,79208.0,79191.0,0.34]
[1744307009625,0.67158334,79208.0,79193.0,0.34]
[1744307009844,0.67158334,79208.0,79195.0,0.34]
[1744307010055,0.67158334,79208.0,79197.0,0.34]
[1744307010257,0.67158334,79208.0,79198.0,0.03921603]
[1744307010673,0.67158334,79208.0,79199.0,0.12943218]
[1744307010911,0.67158334,79208.0,79200.0,0.03921603]
[1744307011066,0.67158334,79208.0,79202.0,0.34]
[1744307011268,0.67158334,79208.0,79204.0,0.34]
[1744307011468,0.67158334,79208.0,79206.0,0.34]
[1744307011675,0.67158334,79208.0,79207.0,0.03921603]
[1744307012526,0.67158334,79208.0,79207.0,0.04858486]
[1744307013211,0.67158334,79208.0,79207.0,0.00936883]
[1744307013428,0.67158334,79208.0,79198.0,0.01454085]
[1744307013634,0.67158334,79208.0,79200.0,0.01454085]
[1744307013850,0.67158334,79208.0,79198.0,0.01454085]
[1744307013851,0.67158334,79208.0,79201.0,0.16609258]
[1744307013994,0.67158334,79208.0,79202.0,0.039185]
[1744307014201,0.67158334,79208.0,79203.0,0.12690758]
[1744307014395,0.67158334,79208.0,79204.0,0.039185]
[1744307014615,0.67158334,79208.0,79205.0,0.039185]
[1744307014840,0.67158334,79208.0,79197.0,0.02446109]
[1744307015038,0.67158334,79208.0,79198.0,0.1660891]
[1744307015243,0.67158334,79208.0,79199.0,0.37918152]
[1744307015446,0.67158334,79208.0,79200.0,0.03918152]
[1744307016058,0.67158334,79208.0,79201.0,0.03918152]
[1744307016260,0.0041673,79206.0,79197.0,0.02426058]
[1744307016459,0.0041673,79206.0,79198.0,0.04170566]
[1744307016692,0.67158334,79208.0,79199.0,0.03918089]
[1744307017208,0.67158334,79208.0,79197.0,0.02443583]
[1744307017411,0.0041673,79207.0,79181.0,0.34]
[1744307017609,0.0491,79206.0,79182.0,0.16609056]
[1744307017815,0.0491,79206.0,79183.0,0.03918298]
[1744307018015,0.0491,79206.0,79185.0,0.34]
[1744307018217,0.0491,79206.0,79187.0,0.34]
[1744307018416,0.0491,79206.0,79188.0,0.03918298]
[1744307018620,0.0491,79206.0,79188.0,0.06395943]
[1744307018799,0.0491,79206.0,79189.0,0.03918298]
[1744307019143,0.42623897,79208.0,79190.0,0.607311]
[1744307019349,0.42623897,79208.0,79191.0,0.03918298]
[1744307019553,0.42623897,79208.0,79192.0,0.1294322]
[1744307019891,0.42623897,79208.0,79193.0,0.03918298]
[1744307020100,0.42623897,79208.0,79194.0,0.12690758]
[1744307020303,0.42623897,79208.0,79195.0,0.03918298]
[1744307020547,0.42623897,79208.0,79196.0,0.1294322]
[1744307020883,0.42623897,79208.0,79196.0,0.12690758]
[1744307021518,0.42623897,79208.0,79197.0,0.03920209]
[1744307021723,0.42623897,79208.0,79182.0,0.00955222]
[1744307021929,0.42623897,79208.0,79183.0,0.19083918]
[1744307022172,0.42623897,79208.0,79184.0,0.03920205]
[1744307022381,0.42623897,79208.0,79185.0,0.12690758]
[1744307022600,0.42623897,79208.0,79186.0,0.03920205]
[1744307022837,0.42623897,79208.0,79187.0,0.12690758]
[1744307023018,0.42623897,79208.0,79188.0,0.03920205]
[1744307023223,0.55314655,79208.0,79188.0,0.03920205]
[1744307023446,0.0041673,79202.0,79184.0,0.03920205]
[1744307023656,0.0041673,79199.0,79185.0,0.03920205]
[1744307023862,0.0041673,79199.0,79184.0,0.37920205]
[1744307024072,0.0041673,79199.0,79185.0,0.03920205]
[1744307024217,0.0041673,79206.0,79185.0,0.03920205]
[1744307024422,0.0041673,79200.0,79185.0,0.03920205]
[1744307024652,0.13107488,79205.0,79185.0,0.03920205]
[1744307024865,0.42623897,79208.0,79186.0,0.50863454]
[1744307025067,0.42623897,79208.0,79187.0,0.03920205]
[1744307025268,0.42623897,79208.0,79188.0,0.34252472]
[1744307025476,0.42623897,79208.0,79189.0,0.04172677]
[1744307025696,0.42623897,79208.0,79190.0,0.03920205]
[1744307026218,0.42623897,79208.0,79191.0,0.03920205]
[1744307026419,0.42623897,79208.0,79189.0,0.03920205]
[1744307026651,0.42623897,79208.0,79190.0,0.37920205]
[1744307026827,0.0041673,79202.0,79190.0,0.37920205]
[1744307027024,0.0041673,79202.0,79191.0,0.03920205]
[1744307028010,0.42623897,79208.0,79192.0,0.00252485]
[1744307028011,0.0041673,79205.0,79192.0,0.00252485]
[1744307028215,0.42623897,79208.0,79193.0,0.03920205]
[1744307028605,0.42623897,79208.0,79184.0,0.03920205]
[1744307028836,0.42623897,79208.0,79186.0,0.34]
[1744307029039,0.42623897,79208.0,79188.0,0.34]
[1744307029247,0.42623897,79208.0,79190.0,0.34]
[1744307029451,0.42623897,79208.0,79192.0,0.34]
[1744307029604,0.0041673,79201.0,79193.0,0.03920205]
[1744307029824,0.0041673,79207.0,79194.0,0.03920205]
[1744307030022,0.0041673,79203.0,79184.0,0.03920205]
[1744307030222,0.0041673,79203.0,79185.0,0.03920205]
[1744307030428,0.0041673,79203.0,79182.0,0.04884128]
[1744307030648,0.0041673,79203.0,79183.0,0.37920205]
[1744307030852,0.42623897,79202.0,79184.0,0.03930387]
[1744307031054,0.42623897,79202.0,79171.0,0.01454085]
[1744307031055,0.42623897,79202.0,79190.0,0.47787864]
[1744307031257,0.42623897,79202.0,79191.0,0.16621145]
[1744307031463,0.42623897,79202.0,79192.0,0.03930387]
[1744307031662,0.42623897,79202.0,79193.0,0.12690758]
[1744307032036,0.42623897,79202.0,79194.0,0.03930387]
[1744307032204,0.42623897,79202.0,79198.0,0.01454085]
[1744307032205,0.1305737,79202.0,79198.0,0.01454085]
[1744307032407,0.08268803,79202.0,79201.0,0.14144843]
[1744307032609,0.08268803,79202.0,79201.0,0.18327625]
[1744307032817,0.01326833,79202.0,79201.0,0.1807523]
[1744307033021,0.01326833,79202.0,79201.0,0.5207523]
[1744307033233,0.0003362,79212.0,79202.0,0.35454085]
[1744307033451,0.0004376,79212.0,79204.0,0.35454085]
[1744307033701,0.0004376,79212.0,79206.0,0.35454085]
[1744307033926,0.0004376,79212.0,79208.0,0.35454085]
[1744307034133,0.0004376,79212.0,79210.0,0.35454085]
[1744307034338,0.0004376,79212.0,79211.0,0.52327607]
[1744307034539,0.0004376,79212.0,79211.0,0.5207523]
[1744307035299,0.0004376,79212.0,79211.0,0.56843151]
[1744307036915,0.0003362,79217.0,79212.0,0.35454085]
[1744307037115,0.0003362,79217.0,79216.0,0.34]
[1744307037305,0.07312532,79217.0,79216.0,0.1807523]
[1744307037511,0.00927827,79217.0,79216.0,0.1807523]
[1744307037919,0.00927827,79217.0,79216.0,0.2807523]
[1744307038174,0.00927827,79217.0,79216.0,0.4289523]
[1744307038175,0.00296739,79217.0,79216.0,0.4289523]
[1744307038341,0.0484,79260.0,79224.0,0.1]
[1744307038557,0.0484,79260.0,79241.0,0.01454085]
[1744307038731,0.0482,79262.0,79250.0,0.47787864]
[1744307038933,0.0482,79262.0,79241.0,0.01454085]
[1744307038934,0.0482,79262.0,79251.0,0.16621145]
[1744307039162,0.0482,79262.0,79252.0,0.03930387]
[1744307039321,0.0482,79262.0,79252.0,0.50621145]
[1744307039523,0.0482,79262.0,79253.0,0.04182666]
[1744307039762,0.0001678,79267.0,79254.0,0.03930387]
[1744307039968,0.0001678,79267.0,79256.0,0.34]
[1744307040144,0.0001678,79267.0,79257.0,0.03930387]
[1744307040356,0.0001678,79267.0,79258.0,0.03930387]
[1744307040713,0.0001678,79267.0,79259.0,0.03930387]
[1744307040887,0.0041673,79260.0,79254.0,0.02472197]
[1744307041145,0.12690758,79266.0,79254.0,0.02472197]
[1744307041146,0.0041673,79258.0,79254.0,0.02472197]
[1744307041381,0.0041673,79256.0,79255.0,0.02601263]
[1744307041587,0.22307488,79256.0,79255.0,0.0234896]
[1744307041788,0.1541673,79254.0,79253.0,0.00012641]
[1744307042004,0.0041673,79232.0,79211.0,0.04767921]
[1744307042211,0.092,79241.0,79212.0,0.03918007]
[1744307042212,0.0041673,79224.0,79212.0,0.03918007]
[1744307042326,0.0041673,79222.0,79211.0,0.04767921]
[1744307042533,0.0041673,79230.0,79211.0,0.00012646]
[1744307042741,0.6608613,79238.0,79212.0,0.16608912]
[1744307042742,0.0041673,79237.0,79212.0,0.16608912]
[1744307042933,0.0041673,79237.0,79213.0,0.37918154]
[1744307043172,0.0041673,79236.0,79215.0,0.34]
[1744307043377,0.0041673,79236.0,79217.0,0.34]
[1744307043580,0.66075822,79238.0,79219.0,0.34]
[1744307043801,0.0041673,79225.0,79220.0,0.03918154]
[1744307044003,0.0041673,79225.0,79214.0,0.01174538]
[1744307044004,0.0041673,79221.0,79215.0,0.03918154]
[1744307044205,0.0501673,79213.0,79211.0,0.00012646]
[1744307044405,0.15,79174.0,79161.0,0.0023356]
[1744307044661,0.15,79169.0,79161.0,0.03294514]
[1744307044969,0.0041673,79167.0,79161.0,0.03294514]
[1744307045110,0.0041673,79169.0,79161.0,0.03336809]
[1744307045293,0.41570512,79173.0,79162.0,0.50862446]
[1744307045540,0.41570512,79168.0,79163.0,0.03919097]
[1744307045739,0.38634606,79168.0,79167.0,0.01454085]
[1744307045940,0.38634606,79168.0,79167.0,0.26609855]
[1744307046115,0.012624,79212.0,79167.0,0.26609855]
[1744307046116,0.0041673,79178.0,79167.0,0.03919097]
[1744307046476,0.15,79183.0,79162.0,0.03919097]
[1744307046682,0.0041673,79187.0,79164.0,0.34]
[1744307046833,0.0041673,79171.0,79165.0,0.0391533]
[1744307047037,0.0041673,79174.0,79161.0,0.03336809]
[1744307047440,0.1541673,79181.0,79163.0,0.35454085]
[1744307047677,0.1541673,79181.0,79165.0,0.34]
[1744307047964,0.0041673,79184.0,79167.0,0.34]
[1744307048165,0.0041673,79184.0,79169.0,0.34]
[1744307048378,0.0041673,79189.0,79170.0,0.00252525]
[1744307048528,0.15,79189.0,79171.0,0.35454085]
[1744307048733,0.0041673,79190.0,79173.0,0.34]
[1744307048931,0.1,79192.0,79173.0,0.12690758]
[1744307049132,0.1,79192.0,79175.0,0.34]
[1744307049332,0.0041673,79198.0,79177.0,0.34]
[1744307049653,0.196,79196.0,79180.0,0.01454085]
[1744307049857,0.0041673,79193.0,79169.0,0.20944]
[1744307050057,0.00410367,79190.0,79170.0,0.52055988]
[1744307050257,0.00410367,79190.0,79170.0,0.48144843]
[1744307050466,0.1,79202.0,79172.0,0.01454085]
[1744307050665,0.00410367,79200.0,79174.0,0.35454085]
[1744307051002,0.15,79196.0,79177.0,0.01454085]
[1744307051146,0.00410367,79205.0,79179.0,0.35454085]
[1744307051344,0.00410367,79205.0,79182.0,0.01454085]
[1744307051565,0.00410367,79205.0,79144.0,0.265338]
[1744307051566,0.1,79207.0,79184.0,0.35454085]
[1744307051767,0.00410367,79209.0,79186.0,0.35454085]
[1744307051992,0.0485,79212.0,79188.0,0.35454085]
[1744307052148,0.1974,79219.0,79180.0,0.47787864]
[1744307052149,0.1,79217.0,79190.0,0.35454085]
[1744307052346,0.15,79213.0,79192.0,0.35454085]
[1744307052592,0.15,79213.0,79189.0,0.2485889]
[1744307052593,0.00410367,79219.0,79194.0,0.35454085]
[1744307052799,0.5168,79230.0,79190.0,0.47787864]
[1744307052800,0.00410367,79227.0,79198.0,0.35454085]
[1744307053167,0.00410367,79222.0,79201.0,0.01454085]
[1744307053439,0.99467864,79230.0,79200.0,0.44]
[1744307053440,0.4191,79230.0,79203.0,0.35454085]
[1744307053765,0.4191,79230.0,79205.0,0.35454085]
[1744307053911,0.4191,79230.0,79207.0,0.35454085]
[1744307054250,0.15,79228.0,79209.0,0.35454085]
[1744307054482,0.10410367,79227.0,79211.0,0.34]
[1744307054608,0.10410367,79227.0,79213.0,0.34]
[1744307054809,0.10410367,79227.0,79214.0,0.0391089]
[1744307055221,0.00410367,79224.0,79214.0,0.0391089]
[1744307055554,0.00410367,79231.0,79216.0,0.34]
[1744307055757,0.00410367,79224.0,79217.0,0.0391089]
[1744307055965,0.15,79235.0,79218.0,0.34]
[1744307056135,0.00410367,79247.0,79220.0,0.01454085]
[1744307056335,0.00410367,79247.0,79222.0,0.34]
[1744307056569,0.002,79249.0,79226.0,0.12690758]
[1744307056774,0.002,79249.0,79231.0,0.34]
[1744307056986,0.15,79262.0,79240.0,0.34]
[1744307057179,0.1,79259.0,79242.0,0.34]
[1744307057380,0.1,79259.0,79244.0,0.34]
[1744307057589,0.1,79259.0,79246.0,0.34]
[1744307057761,0.15,79259.0,79248.0,0.34]
[1744307057945,0.15,79259.0,79249.0,0.0391089]
[1744307058365,0.00410367,79256.0,79249.0,0.07010837]
[1744307058562,0.00410367,79256.0,79250.0,0.01170802]
[1744307058824,0.15,79257.0,79251.0,0.00252311]
[1744307059038,0.0469,79272.0,79253.0,0.01454085]
[1744307059268,0.00410367,79276.0,79250.0,0.01170802]
[1744307059269,0.0001676,79280.0,79256.0,0.01454085]
[1744307059476,0.0001676,79280.0,79258.0,0.35454085]
[1744307059684,0.0001676,79280.0,79260.0,0.35454085]
[1744307059885,0.0001676,79280.0,79262.0,0.35454085]
[1744307060143,0.00410367,79278.0,79264.0,0.34]
[1744307060453,0.0001676,79280.0,79266.0,0.34]
[1744307060454,0.00410367,79275.0,79266.0,0.34]
[1744307060656,0.47787864,79280.0,79266.0,0.34]
[1744307060865,0.0463,79273.0,79266.0,0.34]
[1744307061069,0.12690758,79272.0,79256.0,0.00012652]
[1744307061268,0.47787864,79266.0,79256.0,0.00012652]
[1744307061475,0.12690758,79265.0,79256.0,0.00012652]
[1744307062302,0.0475,79271.0,79221.0,0.002]
[1744307062303,0.47787864,79250.0,79236.0,0.03032691]
[1744307062509,0.47787864,79240.0,79221.0,0.00212652]
[1744307062638,0.33582758,79239.0,79221.0,0.00212652]
[1744307063618,0.0483,79238.0,79221.0,0.00212652]
[1744307063870,0.12690758,79237.0,79222.0,0.002524]
[1744307064404,0.12690758,79237.0,79221.0,0.00212652]
[1744307064606,0.67776201,79231.0,79221.0,0.00212652]
[1744307064816,0.12690758,79230.0,79221.0,0.00212652]
[1744307065241,0.67776201,79231.0,79221.0,0.00212652]
[1744307065242,0.13952858,79229.0,79221.0,0.00212652]
[1744307065457,0.12690758,79229.0,79221.0,0.00212652]
[1744307066739,0.67776201,79231.0,79190.0,0.0003354]
[1744307066740,0.252466,79219.0,79198.0,0.03016598]
[1744307066943,0.012623,79220.0,79199.0,0.00252487]
[1744307066944,0.33586758,79218.0,79199.0,0.00252487]
[1744307067161,0.67776201,79210.0,79191.0,0.00242295]
[1744307067395,0.12690758,79209.0,79191.0,0.03392491]
[1744307067656,0.20886,79218.0,79192.0,0.00252492]
[1744307067846,0.20886,79218.0,79191.0,0.03392491]
[1744307067847,0.12690758,79217.0,79191.0,0.03392491]
[1744307069104,0.12690758,79217.0,79192.0,0.12943219]
[1744307069315,0.20886,79218.0,79193.0,0.01454085]
[1744307069524,0.20886,79218.0,79196.0,0.01454085]
[1744307069728,0.20886,79218.0,79198.0,0.34]
[1744307069937,0.20886,79218.0,79201.0,0.01454085]
[1744307070168,0.25866,79232.0,79203.0,0.35454085]
[1744307070365,0.25866,79232.0,79206.0,0.01454085]
[1744307070579,0.25866,79232.0,79209.0,0.01454085]
[1744307070780,0.25866,79232.0,79211.0,0.34]
[1744307070981,0.25866,79232.0,79213.0,0.34]
[1744307071180,0.0497,79243.0,79213.0,0.34]
[1744307071525,0.17390758,79236.0,79213.0,0.34]
[1744307071950,0.17390758,79236.0,79213.0,0.3495774]
[1744307072082,0.17390758,79236.0,79214.0,0.00252397]
[1744307072508,0.4191,79248.0,79215.0,0.52043884]
[1744307072744,0.12690758,79247.0,79217.0,0.01454085]
[1744307072985,0.12690758,79247.0,79219.0,0.35454085]
[1744307073209,0.62806,79249.0,79221.0,0.35454085]
[1744307073448,0.12690758,79248.0,79221.0,0.34]
[1744307073694,0.4191,79249.0,79224.0,0.01454085]
[1744307073924,0.4191,79249.0,79226.0,0.35454085]
[1744307074171,0.4191,79252.0,79228.0,0.35454085]
[1744307074408,0.0496,79267.0,79230.0,0.35454085]
[1744307074634,0.12690758,79266.0,79232.0,0.35454085]
[1744307074862,0.0496,79267.0,79234.0,0.35454085]
[1744307075117,0.12690758,79266.0,79236.0,0.35454085]
[1744307075377,0.12690758,79266.0,79238.0,0.35454085]
[1744307075625,0.12690758,79265.0,79239.0,0.03899181]
[1744307075851,0.0496,79267.0,79240.0,0.35706395]
[1744307076087,0.0496,79267.0,79242.0,0.35454085]
[1744307076315,0.12690758,79266.0,79243.0,0.03899181]
[1744307076543,0.12690758,79266.0,79242.0,0.34]
[1744307077221,0.12690758,79266.0,79238.0,0.0001]
[1744307077674,0.12690758,79266.0,79239.0,0.34252315]
[1744307077923,0.12690758,79266.0,79240.0,0.03898258]
[1744307078095,0.12690758,79266.0,79241.0,0.00252309]
[1744307078239,0.12690758,79266.0,79239.0,0.34]
[1744307079116,0.12690758,79266.0,79240.0,0.04149927]
[1744307079343,0.12690758,79266.0,79241.0,0.03897617]
[1744307079509,0.25506,79280.0,79243.0,0.01454085]
[1744307079742,0.12690758,79278.0,79245.0,0.34]
[1744307079991,0.12690758,79278.0,79247.0,0.34]
[1744307080454,0.12690758,79278.0,79248.0,0.03898706]
[1744307080703,0.67776201,79270.0,79248.0,0.03898706]
[1744307080944,0.12690758,79269.0,79248.0,0.00012655]
[1744307081903,0.002,79279.0,79249.0,0.34]
[1744307082132,0.67776201,79270.0,79249.0,0.34]
[1744307082381,0.12690758,79269.0,79249.0,0.34]
[1744307082609,0.67776201,79260.0,79249.0,0.34]
[1744307082840,0.002,79279.0,79248.0,0.03104202]
[1744307083105,0.12690758,79278.0,79248.0,0.03104202]
[1744307083560,0.12690758,79278.0,79249.0,0.04155928]
[1744307083786,0.12690758,79278.0,79250.0,0.03903644]
[1744307084018,0.12690758,79278.0,79251.0,0.34]
[1744307084259,0.12690758,79278.0,79253.0,0.34]
[1744307084503,0.12690758,79278.0,79254.0,0.03903644]
[1744307085374,0.12690758,79278.0,79254.0,0.04848545]
[1744307085566,0.12690758,79278.0,79255.0,0.03903644]
[1744307086022,0.12690758,79277.0,79255.0,0.03903644]
[1744307086231,0.12690758,79277.0,79256.0,0.00252285]
[1744307086377,0.12690758,79277.0,79254.0,0.00923052]
[1744307086583,0.12650085,79277.0,79255.0,0.04159397]
[1744307086944,0.12650085,79277.0,79256.0,0.03907109]
[1744307087095,0.12650085,79277.0,79249.0,0.03917109]
[1744307087421,0.12650085,79277.0,79250.0,0.03907109]
[1744307087630,0.12650085,79277.0,79249.0,0.03917109]
[1744307087782,0.12650085,79277.0,79251.0,0.03907109]
[1744307087982,0.12650085,79277.0,79250.0,0.00967979]
[1744307087983,0.12650085,79277.0,79252.0,0.03907109]
[1744307088188,0.12650085,79277.0,79249.0,0.03917109]
[1744307088391,0.47579647,79270.0,79250.0,0.03907109]
[1744307088613,0.12690758,79269.0,79251.0,0.03907109]
[1744307088959,0.12690758,79269.0,79249.0,0.04870711]
[1744307089135,0.12690758,79269.0,79250.0,0.03907109]
[1744307089492,0.12690758,79269.0,79249.0,0.0001]
[1744307089493,0.12690758,79269.0,79251.0,0.03907109]
[1744307089687,0.12690758,79269.0,79252.0,0.03907109]
[1744307089912,0.12690758,79269.0,79249.0,0.03917109]
[1744307090111,0.12690758,79269.0,79250.0,0.03907109]
[1744307090295,0.12690758,79269.0,79249.0,0.0001]
[1744307090296,0.12690758,79269.0,79249.0,0.03917109]
[1744307090564,0.12690758,79269.0,79250.0,0.00252297]
[1744307090772,0.12690758,79269.0,79251.0,0.03907109]
[1744307090967,0.12690758,79269.0,79252.0,0.00252292]
[1744307091171,0.002,79279.0,79253.0,0.03907109]